bitfinex-derivatives/quotes_SOLF0:USTF0_20250624
["timestamp","ask_amount","ask_price","bid_price","bid_amount"]
[1750751939518,43.57487849,143.95,143.88,40.1]
[1750751939710,3.47487849,143.93,143.88,40.1]
[1750751939917,3.47487849,143.91,143.84,15.47624872]
[1750751940116,3.47487849,143.89,143.84,7.006]
[1750751940316,3.47487849,143.91,143.84,7.006]
[1750751940519,6.24731221,143.94,143.86,3.47487849]
[1750751940713,3.47487849,143.94,143.86,3.47487849]
[1750751940913,3.47487849,143.94,143.87,40.1]
[1750751941416,50.51757849,143.95,143.91,6.9442]
[1750751941621,3.47487849,143.93,143.87,40.1]
[1750751941919,50.51727849,143.95,143.91,6.9442]
[1750751942623,40.1,143.95,143.89,3.47487849]
[1750751942822,3.47487849,143.97,143.89,3.47487849]
[1750751943023,2.77350834,143.96,143.9,6.9003]
[1750751943225,6.9419,143.96,143.92,6.9433]
[1750751943419,3.47487849,143.97,143.9,6.9003]
[1750751943723,2.76936279,143.96,143.9,6.9003]
[1750751943924,8.66440719,143.97,143.9,6.9003]
[1750751944118,2.76879718,143.96,143.9,6.9003]
[1750751944327,3.47487849,143.97,143.9,6.9003]
[1750751944530,2.76921935,143.96,143.9,6.9003]
[1750751944821,10.41647849,143.97,143.9,6.9003]
[1750751945016,39.82,143.98,143.91,43.29487849]
[1750751945925,10.41547849,143.99,143.95,6.9419]
[1750751946126,643.19487849,144.01,143.93,3.47487849]
[1750751946325,2.76934078,144.0,143.93,3.47487849]
[1750751946525,643.19487849,144.01,143.93,3.47487849]
[1750751946526,2.76934078,143.99,143.93,3.47487849]
[1750751946826,643.19487849,144.01,143.93,3.47487849]
[1750751947126,6.9412,143.98,143.93,3.47487849]
[1750751947428,6.9411,143.98,143.94,6.9426]
[1750751947823,3.47487849,144.0,143.94,6.9426]
[1750751948024,6.9411,143.98,143.92,3.47487849]
[1750751948325,3.47487849,144.0,143.92,3.47487849]
[1750751948525,6.9411,143.98,143.92,3.47487849]
[1750751949623,3.47487849,143.98,143.91,39.82]
[1750751949930,3.47487849,143.98,143.94,6.9427]
[1750751950229,3.47487849,143.98,143.91,43.29487849]
[1750751950727,6.9406,143.99,143.96,6.9415]
[1750751950931,3.47487849,144.01,143.95,43.29487849]
[1750751951226,2.77519819,144.0,143.95,43.29487849]
[1750751951426,3.47487849,144.01,143.97,6.9411]
[1750751951427,10.41457849,144.01,143.97,6.9411]
[1750751951831,8.67926524,144.03,143.95,43.29487849]
[1750751952032,2.77448215,144.02,143.95,43.29487849]
[1750751952232,3.47487849,144.03,143.95,43.29487849]
[1750751952534,2.7745024,144.02,143.95,43.29487849]
[1750751952831,3.47487849,144.03,143.96,3.47487849]
[1750751953135,3.47487849,144.03,143.97,2.3215]
[1750751953336,3.47487849,144.03,143.97,4.5754]
[1750751953633,164.27819053,144.04,143.97,4.5754]
[1750751953830,167.75306902,144.04,143.97,4.5754]
[1750751954134,9.71532463,144.03,143.99,6.9403]
[1750751954328,167.75306902,144.04,143.99,6.9403]
[1750751954834,6.9392,144.02,143.99,6.9403]
[1750751955135,167.75306902,144.04,143.97,4.5754]
[1750751955436,6.9388,144.03,143.97,4.5754]
[1750751955632,6.9388,144.03,143.99,6.94]
[1750751955830,6.9392,144.02,143.97,4.5754]
[1750751956027,6.9392,144.02,143.98,6.9404]
[1750751956725,43.29487849,144.04,143.97,4.5754]
[1750751957333,43.29487849,144.04,143.98,6.9406]
[1750751957531,43.29487849,144.04,143.97,4.5754]
[1750751957939,6.9394,144.02,143.98,6.9405]
[1750751959131,6.9394,144.02,143.97,8.05027849]
[1750751959735,43.29487849,144.04,143.97,8.05027849]
[1750751960838,6.9392,144.02,143.99,6.9403]
[1750751961538,3.47487849,144.04,143.98,6.9407]
[1750751962240,3.47487849,144.04,143.97,8.05027849]
[1750751962746,6.9392,144.02,143.97,8.05027849]
[1750751962942,6.9392,144.02,143.98,6.9406]
[1750751963149,3.47487849,144.02,143.97,2.2539]
[1750751963343,3.47487849,143.98,143.93,2.3091]
[1750751963539,7.98886971,144.05,143.93,2.3091]
[1750751963540,39.8,144.0,143.93,2.3091]
[1750751963745,3.47487849,143.98,143.93,2.3091]
[1750751963940,3.47487849,143.98,143.93,9.252]
[1750751964143,6.9411,143.98,143.93,2.3091]
[1750751964335,10.41597849,143.98,143.93,2.3091]
[1750751964642,6.9411,143.98,143.93,2.3091]
[1750751964945,3.47487849,143.98,143.95,6.942]
[1750751965247,6.9405,143.99,143.95,6.942]
[1750751965445,10.41537849,143.99,143.95,6.942]
[1750751965744,10.41537849,143.99,143.96,6.9415]
[1750751966046,3.47487849,143.99,143.93,2.3091]
[1750751969151,3.47487849,143.99,143.97,6.9413]
[1750751970145,39.8,144.0,143.98,6.9408]
[1750751970443,43.27487849,144.0,143.93,2.3091]
[1750751970645,43.27487849,144.0,143.91,8.31657849]
[1750751970851,43.27487849,144.0,143.93,3.47487849]
[1750751971151,43.27487849,144.0,143.92,3.47487849]
[1750751971352,43.27487849,144.0,143.96,6.9414]
[1750751971952,6.9407,143.99,143.96,6.9414]
[1750751973147,6.941,143.98,143.95,6.9422]
[1750751973354,6.941,143.98,143.92,3.47487849]
[1750751973558,6.9414,143.97,143.94,6.9425]
[1750751973854,43.27487849,144.0,143.94,6.9425]
[1750751974053,6.9418,143.96,143.93,6.9429]
[1750751974252,43.27487849,144.0,143.91,4.8417]
[1750751974450,3.47487849,143.98,143.91,4.8417]
[1750751974748,6.9428,143.95,143.92,6.9435]
[1750751975450,3.47487849,143.98,143.91,4.8417]
[1750751976046,6.9416,143.97,143.94,6.9426]
[1750751976661,10.41587849,143.98,143.95,6.9422]
[1750751976855,6.941,143.98,143.92,3.47487849]
[1750751977360,6.941,143.98,143.96,6.9418]
[1750751977856,10.41547849,143.99,143.96,6.9418]
[1750751978360,6.9411,143.98,143.95,6.942]
[1750751978657,3.47487849,143.99,143.92,3.47487849]
[1750751979046,6.9409,143.98,143.92,3.47487849]
[1750751979454,46.7401,144.0,143.97,6.941]
[1750751979653,39.8,144.0,143.92,3.47487849]
[1750751980056,6.9413,143.98,143.92,3.47487849]
[1750751980662,6.9406,143.99,143.96,6.9416]
[1750751981262,39.8,144.0,143.92,3.47487849]
[1750751981457,2.3971,144.03,143.96,3.47487849]
[1750751981959,6.9386,144.03,143.96,3.47487849]
[1750751982161,39.72,144.06,143.98,3.47487849]
[1750751982354,6.9383,144.04,144.01,6.9392]
[1750751983058,43.19487849,144.09,144.0,43.19487849]
[1750751983261,8.01409991,144.08,144.0,43.19487849]
[1750751983461,2.77945469,144.07,144.0,43.19487849]
[1750751983664,12.17114522,144.08,144.0,43.19487849]
[1750751983960,2.77750016,144.07,144.0,43.19487849]
[1750751984162,6.9365,144.08,144.04,6.9377]
[1750751984366,2.77885174,144.07,144.04,6.9377]
[1750751984661,6.9366,144.07,144.04,6.9377]
[1750751985254,3.47487849,144.07,144.02,6.9387]
[1750751985455,3.47487849,144.07,144.0,43.19487849]
[1750751985856,6.9385,144.03,144.0,43.19487849]
[1750751986050,3.47487849,144.06,144.0,43.19487849]
[1750751986463,3.47487849,144.06,144.01,6.9393]
[1750751986464,6.938,144.05,144.01,6.9393]
[1750751986664,3.47487849,144.06,144.01,6.9393]
[1750751986965,6.9377,144.05,144.01,6.9393]
[1750751987161,6.9377,144.05,144.0,43.19487849]
[1750751987162,3.47487849,144.06,144.0,39.72]
[1750751987759,6.9385,144.03,144.0,46.6597]
[1750751987954,2.77882891,144.05,144.0,39.72]
[1750751988166,3.47487849,144.06,143.99,2.4017]
[1750751988460,6.939,144.02,143.99,9.3419]
[1750751989156,6.939,144.02,143.99,6.9402]
[1750751989466,2.78716952,144.05,143.97,9.3399]
[1750751989669,8.04726892,144.04,143.97,45.59387849]
[1750751989960,2.78716952,144.03,143.97,42.119]
[1750751990168,6.9402,144.0,143.97,2.399]
[1750751990665,6.9402,144.0,143.97,9.3401]
[1750751991368,6.9395,144.01,143.97,2.399]
[1750751991549,3.47487849,144.04,143.97,2.399]
[1750751991755,2.79005354,144.03,143.97,2.399]
[1750751991961,3.47487849,144.04,143.99,6.9402]
[1750751992166,2.79019285,144.03,143.99,6.9402]
[1750751992367,6.9393,144.02,143.97,2.399]
[1750751992769,3.47487849,144.04,143.98,6.9406]
[1750751993064,2.78977111,144.03,143.98,6.9406]
[1750751993258,6.9397,144.01,143.98,6.9406]
[1750751994570,6.9397,144.01,143.97,2.399]
[1750751994571,6.9391,144.02,143.99,6.9403]
[1750751994771,3.47487849,144.04,143.97,2.399]
[1750751994968,2.78601653,144.03,143.97,2.399]
[1750751995270,5.25550547,144.05,143.97,2.399]
[1750751995467,2.78646245,144.04,143.97,2.399]
[1750751995673,3.47487849,144.05,143.98,3.47487849]
[1750751995967,6.9385,144.03,143.98,3.47487849]
[1750751996572,6.9385,144.03,144.0,6.9396]
[1750751996870,3.47487849,144.05,143.98,3.47487849]
[1750751997059,3.47487849,144.03,143.97,2.399]
[1750751997460,6.9402,144.0,143.97,2.399]
[1750751997667,3.47487849,144.03,143.97,9.34]
[1750751998169,3.47487849,143.99,143.95,6.9421]
[1750751998369,3.47487849,143.99,143.92,3.47487849]
[1750751998674,6.9411,143.98,143.92,3.47487849]
[1750751998872,3.47487849,143.99,143.92,3.47487849]
[1750751999371,3.47487849,143.99,143.94,6.9427]
[1750751999668,3.47487849,143.99,143.91,10.34407849]
[1750752000363,5.25862707,144.02,143.91,6.8692]
[1750752000577,13.8754,144.05,143.91,6.8692]
[1750752000775,6.9409,143.98,143.95,6.942]
[1750752000982,10.50638955,144.03,143.91,6.8692]
[1750752001271,6.9416,143.97,143.94,6.9425]
[1750752001470,20.19738588,144.05,143.91,6.8692]
[1750752001471,8.03196254,144.01,143.91,6.8692]
[1750752001673,2.78591959,144.0,143.91,15.50061257]
[1750752001870,5.24661501,144.02,143.91,6.8692]
[1750752002172,8.03241273,144.01,143.91,6.8692]
[1750752002375,5.26024004,144.04,143.91,6.8692]
[1750752002673,5.26024004,144.03,143.91,6.8692]
[1750752002970,5.26024004,144.04,143.91,6.8692]
[1750752003170,20.19738588,144.05,143.91,6.8692]
[1750752003171,5.26024004,144.03,143.91,6.8692]
[1750752003365,8.03606625,144.02,143.91,6.8692]
[1750752003561,6.9407,143.99,143.91,6.8692]
[1750752003766,5.26024004,144.04,143.91,6.8692]
[1750752003975,6.9412,143.98,143.95,6.942]
[1750752005377,13.27783385,144.03,143.91,15.50061257]
[1750752005560,8.01759381,144.02,143.91,15.50061257]
[1750752005766,2.78174876,144.01,143.91,6.8692]
[1750752005966,2.78174876,144.0,143.91,10.82511257]
[1750752006271,10.4965515,144.03,143.91,10.82511257]
[1750752006475,8.01814116,144.02,143.91,2.1937]
[1750752006665,2.7818297,144.01,143.91,13.24541257]
[1750752006866,5.23582094,144.03,143.92,2.3591]
[1750752007071,6.9397,144.01,143.92,10.99051257]
[1750752007275,18.2152,144.06,143.93,8.63141257]
[1750752007276,9.60074004,144.06,143.93,8.63141257]
[1750752007471,2.7825212,144.05,143.95,8.63141257]
[1750752007668,5.26024004,144.09,143.95,8.63141257]
[1750752007869,13.27913504,144.08,143.95,8.63141257]
[1750752008066,13.2767795,144.07,143.94,8.63141257]
[1750752008368,8.018895,144.06,143.95,8.63141257]
[1750752008573,2.7823373,144.05,143.95,8.63141257]
[1750752008769,10.49461856,144.08,143.95,8.63141257]
[1750752009074,8.01895572,144.07,143.96,62.0]
[1750752009376,2.78207039,144.06,143.97,4.8346]
[1750752009576,5.23980036,144.08,143.98,2.2567]
[1750752009877,2.78237056,144.07,143.98,2.2567]
[1750752010067,6.9382,144.04,143.98,2.2567]
[1750752010268,10.49614371,144.09,143.98,2.2567]
[1750752010464,6.9374,144.06,144.03,6.9382]
[1750752010671,5.25710104,144.1,143.98,2.2567]
[1750752010872,2.78192807,144.09,143.98,10.88811257]
[1750752011082,13.27627941,144.09,143.97,2.4143]
[1750752011268,13.27627941,144.08,143.97,2.4143]
[1750752011468,8.01928985,144.07,143.97,2.4143]
[1750752011664,8.01928985,144.06,143.98,6.9406]
[1750752011867,2.78192807,144.05,143.97,2.4143]
[1750752012072,2.78192807,144.04,143.97,2.4143]
[1750752012277,10.49475833,144.07,143.98,6.9406]
[1750752012480,8.01859782,144.06,143.98,6.9406]
[1750752012776,6.9394,144.01,143.98,6.9406]
[1750752013164,5.23661344,144.06,143.98,6.9406]
[1750752013366,2.7806069,144.05,144.0,6.9399]
[1750752013577,5.23668554,144.07,143.97,2.4143]
[1750752013776,6.9387,144.03,143.97,2.4143]
[1750752014081,2.78041765,144.05,143.97,2.4143]
[1750752014272,5.2645257,144.09,143.97,2.4143]
[1750752014579,13.28056063,144.08,143.97,2.4143]
[1750752014776,8.01603493,144.07,143.97,2.4143]
[1750752014978,6.9388,144.03,143.97,2.4143]
[1750752015176,6.9388,144.03,144.0,6.9396]
[1750752015374,8.07960906,144.08,143.97,2.4143]
[1750752015580,8.07960906,144.07,143.97,2.4143]
[1750752015779,2.78005475,144.06,144.01,6.9391]
[1750752015984,5.29978003,144.08,143.98,4.6031]
[1750752016182,2.77987501,144.07,143.98,4.6031]
[1750752016382,5.2645257,144.1,143.98,4.6031]
[1750752016579,8.07902399,144.09,143.98,4.6031]
[1750752016785,2.77965153,144.08,143.98,4.6031]
[1750752016981,9.67006664,144.11,143.98,4.6031]
[1750752017282,9.67006664,144.11,143.98,13.23451257]
[1750752017283,8.07577674,144.1,143.98,13.23451257]
[1750752017580,2.77854489,144.09,143.98,13.23451257]
[1750752017782,5.29729479,144.1,143.98,13.23451257]
[1750752017981,2.78264544,144.09,143.98,13.23451257]
[1750752018185,5.29643164,144.1,143.98,13.23451257]
[1750752018387,2.78205758,144.09,143.98,4.6031]
[1750752018681,5.29548685,144.1,143.98,4.6031]
[1750752018881,2.78197748,144.09,143.98,4.6031]
[1750752019083,5.29541049,144.1,143.98,4.6031]
[1750752019285,2.7819563,144.09,143.98,4.6031]
[1750752019584,5.2935,144.1,143.98,13.23451257]
[1750752019884,2.78098229,144.09,143.98,13.23451257]
[1750752020083,5.29356082,144.1,143.98,13.23451257]
[1750752020279,2.78085453,144.09,143.98,4.6031]
[1750752020477,5.2932331,144.1,143.98,4.6031]
[1750752020783,2.78083647,144.09,143.98,13.23451257]
[1750752020982,4.4072,144.11,143.98,13.23451257]
[1750752020983,5.2932463,144.1,143.98,13.23451257]
[1750752021185,2.78076381,144.09,143.98,13.23451257]
[1750752021380,5.29454179,144.1,143.98,13.23451257]
[1750752021581,2.78152321,144.09,143.98,13.23451257]
[1750752021788,5.2945449,144.1,143.98,13.23451257]
[1750752021977,8.42931451,144.16,143.98,13.23451257]
[1750752021978,5.2943871,144.13,143.98,13.23451257]
[1750752022287,5.29367899,144.14,144.01,8.63141257]
[1750752022478,5.29367899,144.16,144.03,8.63141257]
[1750752022684,2.78671111,144.15,144.04,6.8371]
[1750752022876,5.29393621,144.16,144.04,6.8371]
[1750752023074,5.25770011,144.22,144.06,8.63141257]
[1750752023283,8.0824266,144.21,144.07,8.63141257]
[1750752023487,2.7873821,144.23,144.07,8.63141257]
[1750752023689,2.7873821,144.23,144.09,8.63141257]
[1750752023990,5.0440821,144.24,144.1,10.83981257]
[1750752024195,2.7873821,144.23,144.11,4.5915]
[1750752024377,2.7873821,144.22,144.11,4.5915]
[1750752024574,2.7873821,144.23,144.11,4.5915]
[1750752024784,2.2567,144.24,144.11,4.5915]
[1750752024785,2.7873821,144.22,144.11,4.5915]
[1750752024980,2.77641414,144.23,144.11,4.5915]
[1750752026588,5.03311414,144.24,144.11,4.5915]
[1750752027089,2.1467,144.26,144.11,4.5915]
[1750752027287,4.92311414,144.26,144.11,4.5915]
[1750752027789,2.1467,144.26,144.11,4.5915]
[1750752029081,7.39532604,144.26,144.11,4.5915]
[1750752029481,2.1467,144.26,144.11,4.5915]
[1750752030881,7.39532604,144.26,144.11,4.5915]
[1750752032086,5.24862604,144.25,144.11,4.5915]
[1750752033092,7.39532604,144.26,144.11,4.5915]
[1750752033592,7.49750411,144.26,144.11,4.5915]
[1750752033894,5.35080411,144.25,144.11,4.5915]
[1750752035194,2.1467,144.26,144.11,4.5915]
[1750752035195,7.49750411,144.26,144.11,4.5915]
[1750752035387,2.1467,144.26,144.11,4.5915]
[1750752036093,5.35080411,144.25,144.11,4.5915]
[1750752039193,5.34087535,144.25,144.11,4.5915]
[1750752039396,5.34087535,144.24,144.11,4.5915]
[1750752039594,5.34087535,144.25,144.11,4.5915]
[1750752039898,5.34087535,144.24,144.11,4.5915]
[1750752040092,5.34087535,144.25,144.11,4.5915]
[1750752040294,7.48757535,144.26,144.11,4.5915]
[1750752040901,5.34087535,144.25,144.11,4.5915]
[1750752041196,28.30121122,144.26,144.11,4.5915]
[1750752041397,5.33932735,144.25,144.11,4.5915]
[1750752041602,5.33932735,144.24,144.11,4.5915]
[1750752041794,25.73843094,144.26,144.1,2.2084]
[1750752041795,5.33932735,144.23,144.1,2.2084]
[1750752041988,5.33932735,144.22,144.1,2.2084]
[1750752042301,2.3601,144.21,144.06,4.632]
[1750752042489,2.1442,144.2,144.06,7.0273]
[1750752043399,7.48352735,144.2,144.06,7.0273]
[1750752043597,2.1442,144.2,144.06,7.0273]
[1750752046503,7.49009313,144.2,144.06,7.0273]
[1750752046796,5.34589313,144.19,144.06,7.0273]
[1750752047399,7.49009313,144.2,144.06,7.0273]
[1750752047707,5.34589313,144.19,144.06,7.0273]
[1750752048003,5.33331619,144.18,144.06,7.0273]
[1750752048295,2.1442,144.2,144.06,7.0273]
[1750752048503,5.33354878,144.19,144.06,7.0273]
[1750752048692,2.1442,144.2,144.06,7.0273]
[1750752049002,5.33359781,144.19,144.06,7.0273]
[1750752049401,2.1442,144.2,144.06,7.0273]
[1750752050100,5.34163224,144.19,144.06,7.0273]
[1750752050401,5.34339358,144.18,144.06,7.0273]
[1750752050600,5.34299492,144.17,144.06,7.0273]
[1750752050904,2.76529764,144.19,144.06,7.0273]
[1750752051099,5.34304587,144.18,144.06,7.0273]
[1750752051300,5.34304587,144.17,144.06,7.0273]
[1750752051504,2.76529764,144.18,144.06,7.0273]
[1750752051702,5.34291895,144.17,144.06,7.0273]
[1750752051905,2.76529764,144.18,144.06,7.0273]
[1750752052101,5.34285528,144.17,144.06,7.0273]
[1750752052299,2.76528789,144.18,144.06,7.0273]
[1750752052495,5.34566036,144.17,144.06,7.0273]
[1750752052699,2.76528789,144.18,144.06,7.0273]
[1750752053003,8.11166891,144.17,144.06,7.0273]
[1750752053195,5.34539448,144.16,144.06,7.0273]
[1750752053396,2.76627443,144.17,144.06,7.0273]
[1750752053605,8.11312155,144.16,144.05,84.98886846]
[1750752053807,15.71761667,144.15,144.0,4.6237]
[1750752054005,15.49841667,144.14,144.01,2.3438]
[1750752054208,13.35081667,144.13,144.01,2.3438]
[1750752054514,8.11312155,144.12,144.01,2.3438]
[1750752054707,8.11312155,144.11,144.01,2.3438]
[1750752054911,5.34714538,144.1,144.01,2.3438]
[1750752055111,2.76663119,144.11,144.01,2.3438]
[1750752055409,5.33097134,144.1,144.01,2.3438]
[1750752055610,2.76663119,144.11,144.01,2.3438]
[1750752055800,5.33138622,144.1,144.01,2.3438]
[1750752056108,2.76663119,144.11,144.01,2.3438]
[1750752056306,2.76663119,144.1,144.01,2.3438]
[1750752056509,5.34056024,144.09,144.01,2.3438]
[1750752056698,2.77118505,144.1,144.01,2.3438]
[1750752056897,5.34131873,144.09,144.01,2.3438]
[1750752057102,2.77035144,144.11,144.01,2.3438]
[1750752057297,8.11121822,144.1,144.01,2.3438]
[1750752057501,7.5085849,144.14,144.01,2.3438]
[1750752057502,5.34086678,144.09,144.01,2.3438]
[1750752057700,2.74459306,144.1,144.01,2.3438]
[1750752057904,5.31547791,144.09,144.01,2.3438]
[1750752058105,5.31547791,144.08,144.01,2.3438]
[1750752058304,5.23769512,144.12,144.01,2.3438]
[1750752058507,8.05402074,144.11,144.01,2.3438]
[1750752058718,10.60223273,144.13,144.01,2.3438]
[1750752058719,5.30944569,144.1,144.01,2.3438]
[1750752058910,5.31388212,144.09,144.01,2.3438]
[1750752059206,5.23769512,144.11,144.01,2.3438]
[1750752059407,8.04993764,144.1,144.01,2.3438]
[1750752059611,2.73618812,144.12,144.01,2.3438]
[1750752059808,8.05041507,144.11,144.01,2.3438]
[1750752060013,8.05041507,144.1,144.01,2.3438]
[1750752060219,5.31422695,144.09,144.01,2.3438]
[1750752060514,2.73618812,144.11,144.01,2.3438]
[1750752060813,2.73618812,144.11,144.0,4.6237]
[1750752060814,8.05019894,144.1,144.0,4.6237]
[1750752061020,10.26109894,144.09,144.0,4.6237]
[1750752061202,5.31401082,144.08,144.0,4.6237]
[1750752061410,4.94708812,144.09,144.0,4.6237]
[1750752061609,5.31068796,144.08,144.0,4.6237]
[1750752061908,5.31068432,144.07,143.95,2.4244]
[1750752062105,8.04620808,144.06,143.95,7.0813]
[1750752062311,2.73552376,144.06,143.95,7.0813]
[1750752062612,5.31112063,144.08,143.95,7.0813]
[1750752062813,2.2109,144.09,143.95,7.0813]
[1750752063207,7.52167242,144.09,143.95,7.0813]
[1750752063417,2.2109,144.09,143.95,7.0813]
[1750752066717,7.51413824,144.09,143.95,7.0813]
[1750752066918,2.2109,144.09,143.95,7.0813]
[1750752069021,8.02943335,144.08,143.95,7.0813]
[1750752069217,8.02943335,144.07,143.95,7.0813]
[1750752069512,8.02943335,144.08,143.95,7.0813]
[1750752069709,2.2109,144.09,143.95,7.0813]
[1750752070823,7.49828659,144.09,143.95,7.0813]
[1750752071016,2.2109,144.09,143.95,7.0813]
[1750752072716,8.01606504,144.08,143.95,7.0813]
[1750752073024,8.00833571,144.07,143.95,4.7432]
[1750752073224,10.15893571,144.07,143.95,4.7432]
[1750752073722,10.15893571,144.07,143.87,2.239]
[1750752073723,8.00833571,144.06,143.87,2.239]
[1750752073924,8.00776431,144.06,143.88,4.8365]
[1750752074222,8.00776431,144.05,143.88,4.8365]
[1750752074420,8.00776431,144.06,143.88,4.8365]
[1750752074719,8.00776431,144.05,143.88,4.8365]
[1750752074914,8.00776431,144.06,143.88,4.8365]
[1750752075110,8.00776431,144.05,143.88,4.8365]
[1750752075316,5.28224215,144.04,143.88,4.8365]
[1750752075516,2.2949,144.03,143.88,4.8365]
[1750752077919,2.1506,144.07,143.88,4.8365]
[1750752078321,5.27707628,144.08,143.88,25.6765]
[1750752078521,2.423,144.09,143.88,34.24592367]
[1750752078827,2.423,144.09,143.88,25.6765]
[1750752079122,7.99229695,144.08,143.88,25.6765]
[1750752079426,5.27248313,144.08,143.88,25.6765]
[1750752080325,5.27248313,144.08,143.88,34.24592367]
[1750752080525,5.27248313,144.08,143.88,25.6765]
[1750752080829,13.19039149,144.07,143.88,4.8365]
[1750752081013,7.99259057,144.06,143.88,4.8365]
[1750752081325,7.99259057,144.05,143.88,4.8365]
[1750752081520,5.27816797,144.04,143.88,4.8365]
[1750752081721,5.27807166,144.03,143.88,4.8365]
[1750752081918,5.27807166,144.02,143.88,4.8365]
[1750752082114,5.27733902,144.01,143.88,4.8365]
[1750752082428,7.67093902,144.0,143.88,4.8365]
[1750752082724,2.3936,144.0,143.88,4.8365]
[1750752082925,5.28227576,143.99,143.88,4.8365]
[1750752083118,2.3936,144.0,143.88,4.8365]
[1750752083323,5.27375518,143.99,143.88,4.8365]
[1750752083529,2.3936,144.0,143.88,4.8365]
[1750752083727,5.27028861,143.99,143.88,4.8365]
[1750752083923,2.3936,144.0,143.88,4.8365]
[1750752084329,5.27010358,143.99,143.88,4.8365]
[1750752084623,2.3936,144.0,143.88,4.8365]
[1750752084825,5.27010358,143.99,143.88,4.8365]
[1750752085022,2.3936,144.0,143.88,4.8365]
[1750752085218,7.98825306,143.99,143.88,4.8365]
[1750752085430,5.26679679,143.98,143.88,4.8365]
[1750752085632,5.11174948,144.0,143.88,4.8365]
[1750752085823,5.26679679,143.99,143.88,4.8365]
[1750752086024,5.26679679,143.98,143.88,4.8365]
[1750752086221,2.71814948,143.99,143.88,4.8365]
[1750752086421,5.26682304,143.98,143.88,4.8365]
[1750752086634,5.26682304,143.97,143.88,4.8365]
[1750752086927,2.3936,144.0,143.88,4.8365]
[1750752087129,7.91826882,144.03,143.88,4.8365]
[1750752087326,7.99126978,144.02,143.88,4.8365]
[1750752087522,5.27208194,144.01,143.88,4.8365]
[1750752087728,2.71918784,144.02,143.88,4.8365]
[1750752087928,5.27156255,144.01,143.88,4.8365]
[1750752088135,2.71918784,144.02,143.88,4.8365]
[1750752088322,5.25740465,144.01,143.88,4.8365]
[1750752088528,7.9424466,144.0,143.88,4.8365]
[1750752088833,7.9424466,143.99,143.88,4.8365]
[1750752089034,2.71918784,144.01,143.88,4.8365]
[1750752089230,7.94695571,144.0,143.88,4.8365]
[1750752089432,7.94695571,143.99,143.88,4.8365]
[1750752089636,5.22776787,143.98,143.88,4.8365]
[1750752089827,2.70551906,143.99,143.88,4.8365]
[1750752090029,5.22519186,143.98,143.88,4.8365]
[1750752090229,2.70551906,144.0,143.88,4.8365]
[1750752090428,7.93070228,143.99,143.88,4.8365]
[1750752090632,5.22518322,143.98,143.88,4.8365]
[1750752090826,2.70551906,144.0,143.88,4.8365]
[1750752091034,5.22514584,143.99,143.88,4.8365]
[1750752091236,7.93090456,144.01,143.88,4.8365]
[1750752091438,7.93090456,144.0,143.88,4.8365]
[1750752091741,7.93090456,143.99,143.88,4.8365]
[1750752091928,2.3788,143.99,143.88,4.8365]
[1750752092130,5.22850915,143.98,143.88,4.8365]
[1750752092327,2.3788,143.99,143.88,4.8365]
[1750752092529,5.22776167,143.98,143.88,4.8365]
[1750752092733,2.3788,143.99,143.88,4.8365]
[1750752092939,7.93133762,143.98,143.88,4.8365]
[1750752093140,5.22623787,143.97,143.88,4.8365]
[1750752093443,2.1522,143.98,143.88,4.8365]
[1750752093639,5.22270385,143.97,143.88,4.8365]
[1750752093937,5.22263086,143.97,143.88,4.8365]
[1750752094535,2.70239651,143.97,143.87,2.239]
[1750752095538,7.92988551,143.96,143.87,2.239]
[1750752095848,5.227489,143.95,143.84,4.5881]
[1750752096033,7.9318909,143.94,143.84,4.5881]
[1750752096336,7.9312332,143.96,143.84,4.5881]
[1750752096535,7.9312332,143.95,143.84,4.5881]
[1750752096742,7.9312332,143.94,143.84,4.5881]
[1750752096944,7.92857341,143.93,143.84,4.5881]
[1750752097138,5.2268313,143.92,143.84,2.2437]
[1750752097334,2.70169023,143.93,143.81,4.532]
[1750752097542,7.91154558,143.92,143.81,4.532]
[1750752097835,7.91154558,143.91,143.81,4.532]
[1750752098036,7.91154558,143.9,143.81,4.532]
[1750752098238,5.20990613,143.89,143.81,2.1886]
[1750752098439,7.91969889,143.92,143.82,2.3434]